fUST/lending_fUST_20250618
["ID","MTS","AMOUNT","RATE_DAILY","PERIOD"]
[366297041,1750179044961,-460.0,0.00024136,6]
[366297043,1750179044971,-460.0,0.00024136,6]
[366297045,1750179044981,-460.0,0.00024136,6]
[366297046,1750179044991,-162.02634721,0.00024136,6]
[366297049,1750179045000,-460.0,0.00024136,6]
[366297050,1750179045010,-460.0,0.00024136,6]
[366297053,1750179045019,-151.0,0.00024136,7]
[366297055,1750179045029,-460.0,0.00024136,6]
[366297057,1750179045038,-152.922554,0.00024136,7]
[366297059,1750179045047,-420.0,0.00024136,6]
[366297061,1750179045056,-460.0,0.00024136,6]
[366297063,1750179045065,-460.0,0.00024136,6]
[366297065,1750179045074,-460.0,0.00024136,6]
[366297067,1750179045086,-460.0,0.00024136,6]
[366297069,1750179045096,-460.0,0.00024136,6]
[366297071,1750179045105,-195.3882179,0.00024136,6]
[366297073,1750179045115,-151.0,0.00024136,7]
[366297075,1750179045124,-460.0,0.00024136,6]
[366297077,1750179045132,-460.0,0.00024136,6]
[366297079,1750179045140,-576.66967171,0.00024136,6]
[366297081,1750179045150,-772.44,0.00024136,6]
[366297083,1750179045159,-460.0,0.00024136,6]
[366297085,1750179045167,-219.113716,0.00024136,7]
[366297087,1750179045176,-460.0,0.00024136,6]
[366297089,1750179045187,-643.43,0.00024136,6]
[366297091,1750179045197,-460.0,0.00024136,6]
[366297093,1750179045207,-460.0,0.00024136,6]
[366297095,1750179045216,-460.0,0.00024136,6]
[366297097,1750179045227,-460.0,0.00024136,6]
[366297099,1750179045237,-460.0,0.00024136,6]
[366297101,1750179045247,-465.71,0.00024136,6]
[366297107,1750179045294,-460.0,0.00024136,6]
[366297109,1750179045304,-460.0,0.00024136,6]
[366297111,1750179045313,-151.0,0.00024136,7]
[366297113,1750179045323,-934.22,0.00024136,6]
[366297115,1750179045332,-460.0,0.00024136,6]
[366297117,1750179045341,-460.0,0.00024136,6]
[366297119,1750179045351,-460.0,0.00024136,6]
[366297121,1750179045360,-460.0,0.00024136,6]
[366297123,1750179045370,-460.0,0.00024136,6]
[366297125,1750179045379,-1269.95,0.00024136,2]
[366297127,1750179045388,-1619.21,0.00024136,6]
[366297129,1750179045397,-1345.7,0.00024136,6]
[366297130,1750179045406,-460.0,0.00024136,6]
[366297132,1750179045415,-580.5,0.00024136,6]
[366297134,1750179045425,-331.64134034,0.00024136,6]
[366297136,1750179045434,-460.0,0.00024136,6]
[366297138,1750179045444,-460.0,0.00024136,6]
[366297141,1750179045454,-460.0,0.00024136,6]
[366297142,1750179045464,-460.0,0.00024136,6]
[366297144,1750179045473,-460.0,0.00024136,6]
[366297147,1750179045484,-151.0,0.00024136,7]
[366297148,1750179045493,-460.0,0.00024136,6]
[366297150,1750179045506,-460.0,0.00024136,6]
[366297152,1750179045515,-460.0,0.00024136,6]
[366297154,1750179045525,-460.0,0.00024136,6]
[366297156,1750179045535,-460.0,0.00024136,6]
[366297158,1750179045544,-460.0,0.00024136,6]
[366297161,1750179045554,-482.85335105,0.00024136,6]
[366297163,1750179045563,-460.0,0.00024136,6]
[366297166,1750179045572,-588.03,0.00024136,6]
[366297169,1750179045583,-308.59621826,0.00024136,6]
[366297172,1750179045592,-460.0,0.00024136,6]
[366297175,1750179045601,-460.0,0.00024136,6]
[366297178,1750179045610,-460.0,0.00024136,6]
[366297180,1750179045619,-460.0,0.00024136,6]
[366297183,1750179045629,-460.0,0.00024136,6]
[366297186,1750179045639,-288.47230282,0.00024136,6]
[366297189,1750179045648,-460.0,0.00024136,6]
[366297192,1750179045658,-460.0,0.00024136,6]
[366297196,1750179045668,-460.0,0.00024136,6]
[366297199,1750179045678,-460.0,0.00024136,6]
[366297202,1750179045689,-460.0,0.00024136,6]
[366297205,1750179045700,-460.0,0.00024136,6]
[366297207,1750179045709,-460.0,0.00024136,6]
[366297209,1750179045719,-460.0,0.00024136,6]
[366297211,1750179045729,-460.0,0.00024136,6]
[366297213,1750179045739,-460.0,0.00024136,6]
[366297215,1750179045750,-460.0,0.00024136,6]
[366297217,1750179045759,-460.0,0.00024136,6]
[366297219,1750179045769,-630.32,0.00024136,6]
[366297221,1750179045779,-460.0,0.00024136,6]
[366297222,1750179045789,-474.93,0.00024136,6]
[366297224,1750179045798,-460.0,0.00024136,6]
[366297226,1750179045809,-346.23963318,0.00024136,6]
[366297228,1750179045818,-560.74,0.00024136,6]
[366297230,1750179045829,-460.0,0.00024136,6]
[366297232,1750179045838,-634.35,0.00024136,6]
[366297234,1750179045847,-460.0,0.00024136,6]
[366297236,1750179045857,-460.0,0.00024136,6]
[366297238,1750179045866,-151.0,0.00024136,7]
[366297240,1750179045875,-460.0,0.00024136,6]
[366297241,1750179045886,-400.17634307,0.00024136,6]
[366297243,1750179045896,-460.0,0.00024136,6]
[366297245,1750179045905,-500.0,0.00024136,6]
[366297247,1750179045916,-1575.2,0.00024136,6]
[366297249,1750179045927,-460.0,0.00024136,6]
[366297251,1750179045939,-880.65,0.00024136,6]
[366297253,1750179045949,-460.0,0.00024136,6]
[366297255,1750179045959,-460.0,0.00024136,6]
[366297257,1750179045969,-638.02,0.00024136,6]
[366297259,1750179045979,-460.0,0.00024136,6]
[366297261,1750179045988,-460.0,0.00024136,6]
[366297263,1750179045998,-460.0,0.00024136,6]
[366297265,1750179046009,-460.0,0.00024136,6]
[366297267,1750179046019,-460.0,0.00024136,6]
[366297269,1750179046028,-483.35,0.00024136,6]
[366297271,1750179046038,-460.0,0.00024136,6]
[366297273,1750179046047,-460.0,0.00024136,6]
[366297275,1750179046056,-460.0,0.00024136,6]
[366297277,1750179046065,-460.0,0.00024136,6]
[366297279,1750179046074,-151.0,0.00024136,7]
[366297281,1750179046085,-151.0,0.00024136,7]
[366297283,1750179046095,-151.0,0.00024136,7]
[366297285,1750179046105,-460.0,0.00024136,6]
[366297287,1750179046114,-460.0,0.00024136,6]
[366297289,1750179046123,-460.0,0.00024136,6]
[366297291,1750179046133,-517.96,0.00024136,6]
[366297293,1750179046143,-151.0,0.00024136,7]
[366297295,1750179046153,-460.0,0.00024136,6]
[366297297,1750179046162,-1170.66,0.00024136,6]
[366297299,1750179046172,-674.52,0.00024136,6]
[366297301,1750179046182,-460.0,0.00024136,6]
[366297303,1750179046194,-466.58454979,0.00024136,6]
[366297305,1750179046204,-502.55,0.00024136,6]
[366297307,1750179046214,-460.0,0.00024136,6]
[366297309,1750179046224,-401.95614544,0.00024136,6]
[366297311,1750179046234,-504.68,0.00024136,6]
[366297313,1750179046244,-460.0,0.00024136,6]
[366297315,1750179046252,-2150.05,0.00024136,6]
[366297317,1750179046261,-319.46499,0.00024136,7]
[366297319,1750179046271,-319.46499,0.00024136,7]
[366297321,1750179046281,-319.46499,0.00024136,7]
[366297323,1750179046291,-460.0,0.00024136,6]
[366297325,1750179046300,-995.22,0.00024136,6]
[366297328,1750179046309,-460.0,0.00024136,6]
[366297330,1750179046319,-488.25321314,0.00024136,6]
[366297331,1750179046329,-6373.84,0.00024136,6]
[366297333,1750179046339,-319.46499,0.00024136,7]
[366297335,1750179046350,-319.46499,0.00024136,7]
[366297337,1750179046359,-319.46499,0.00024136,7]
[366297339,1750179046369,-460.0,0.00024136,6]
[366297341,1750179046380,-460.0,0.00024136,6]
[366297343,1750179046390,-151.0,0.00024136,7]
[366297345,1750179046400,-151.0,0.00024136,7]
[366297347,1750179046410,-358.67853999,0.00024136,6]
[366297349,1750179046420,-460.0,0.00024136,6]
[366297351,1750179046430,-460.0,0.00024136,6]
[366297354,1750179046442,-460.0,0.00024136,6]
[366297356,1750179046451,-540.6,0.00024136,6]
[366297358,1750179046461,-460.0,0.00024136,6]
[366297359,1750179046470,-163.87402863,0.00024136,6]
[366297378,1750179046650,-296.12597137,0.00024136,6]
[366297380,1750179046660,-460.0,0.00024136,6]
[366297382,1750179046670,-61.79403113,0.00024136,6]
[366297384,1750179046684,-398.20596887,0.00024136,6]
[366297386,1750179046694,-460.0,0.00024136,6]
[366297388,1750179046704,-650.50158951,0.00024136,6]
[366297415,1750179046960,-5000.0,0.00021779,2]
[366297417,1750179046971,-633.62,0.00024109,6]
[366297419,1750179046981,-460.0,0.00024109,6]
[366297421,1750179046992,-460.0,0.00024109,6]
[366297423,1750179047001,-1069.36841049,0.00024136,6]
[366297425,1750179047012,-550.06280907,0.00024136,6]
[366297427,1750179047022,-464.02878049,0.00024136,6]
[366297429,1750179047034,-2173.89121951,0.00024136,6]
[366297431,1750179047043,-4300.74,0.00024136,6]
[366297433,1750179047053,-480.01,0.00024136,6]
[366297435,1750179047063,-460.0,0.00024136,6]
[366297437,1750179047072,-460.0,0.00024136,6]
[366297439,1750179047082,-240.0,0.00024136,6]
[366297441,1750179047092,-1282.28,0.00024136,6]
[366297443,1750179047102,-1341.67,0.00024136,6]
[366297445,1750179047112,-460.0,0.00024136,6]
[366297447,1750179047121,-1374.79,0.00024136,6]
[366297449,1750179047131,-460.0,0.00024136,6]
[366297451,1750179047141,-460.0,0.00024136,6]
[366297453,1750179047150,-460.0,0.00024136,6]
[366297455,1750179047160,-460.0,0.00024136,6]
[366297457,1750179047170,-460.0,0.00024136,6]
[366297459,1750179047180,-460.0,0.00024136,6]
[366297462,1750179047192,-151.0,0.00024136,7]
[366297463,1750179047201,-151.0,0.00024136,7]
[366297466,1750179047211,-1002.99,0.00024136,6]
[366297468,1750179047221,-1564.98,0.00024136,6]
[366297469,1750179047231,-151.0,0.00024136,7]
[366297471,1750179047241,-460.0,0.00024136,6]
[366297473,1750179047250,-460.0,0.00024136,6]
[366297475,1750179047260,-460.0,0.00024136,6]
[366297477,1750179047270,-151.0,0.00024136,7]
[366297479,1750179047280,-151.0,0.00024136,7]
[366297481,1750179047289,-151.0,0.00024136,7]
[366297483,1750179047299,-2361.96,0.00024136,6]
[366297485,1750179047309,-460.0,0.00024136,6]
[366297487,1750179047319,-814.58,0.00024136,6]
[366297489,1750179047329,-460.0,0.00024136,6]
[366297491,1750179047339,-460.0,0.00024136,6]
[366297493,1750179047349,-472.27569026,0.00024136,6]
[366297495,1750179047359,-460.0,0.00024136,6]
[366297498,1750179047370,-152.17968508,0.00024136,6]
[366297499,1750179047379,-1076.59,0.00024136,6]
[366297501,1750179047390,-460.0,0.00024136,6]
[366297503,1750179047400,-1063.37,0.00024136,6]
[366297505,1750179047409,-460.0,0.00024136,6]
[366297507,1750179047419,-460.0,0.00024136,6]
[366297509,1750179047428,-460.0,0.00024136,6]
[366297511,1750179047442,-1830.27,0.00024136,6]
[366297513,1750179047451,-460.0,0.00024136,6]
[366297515,1750179047462,-430.0,0.00024136,6]
[366297517,1750179047474,-2744.53,0.00024136,6]
[366297520,1750179047485,-8334.83,0.00024136,6]
[366297521,1750179047497,-4438.83668703,0.00024136,6]
[366297524,1750179047511,-565.709,0.00024136,6]
[366297576,1750179048058,-460.0,0.00024109,6]
[366297578,1750179048069,-460.0,0.00024109,6]
[366297580,1750179048079,-1937.65431297,0.00024136,6]
[366297581,1750179048089,-9258.13,0.00024136,6]
[366297583,1750179048099,-460.0,0.00024136,6]
[366297586,1750179048110,-367.48953391,0.00024136,6]
[366297587,1750179048120,-856.08,0.00024136,6]
[366297589,1750179048130,-460.0,0.00024136,6]
[366297591,1750179048141,-1633.03,0.00024136,6]
[366297593,1750179048152,-460.0,0.00024136,6]
[366297595,1750179048162,-4437.61615313,0.00024136,6]
[366297597,1750179048175,-408.55384687,0.00024136,6]
[366297600,1750179048186,-1338.73,0.00024136,6]
[366297601,1750179048197,-151.0,0.00024136,7]
[366297603,1750179048207,-151.0,0.00024136,7]
[366297605,1750179048218,-151.0,0.00024136,7]
[366297607,1750179048228,-460.0,0.00024136,6]
[366297609,1750179048239,-460.0,0.00024136,6]
[366297626,1750179048398,-460.0,0.00024136,6]
[366297628,1750179048408,-767.09086326,0.00024136,6]
[366297630,1750179048420,-1775.53786358,0.00024136,6]
[366297632,1750179048432,-4403.0487279,0.00024136,6]
[366297634,1750179048446,-1741.18254526,0.00024136,6]
[366297636,1750179048456,-460.0,0.00024136,6]
[366297638,1750179048466,-335.54076188,0.00024136,2]
[366297640,1750179048477,-460.0,0.00024136,6]
[366297642,1750179048493,-548.12663295,0.00024136,6]
[366297644,1750179048504,-460.0,0.00024136,6]
[366297646,1750179048514,-460.0,0.00024136,6]
[366297648,1750179048523,-460.0,0.00024136,6]
[366297650,1750179048534,-1544.54,0.00024136,6]
[366297651,1750179048544,-460.0,0.00024136,6]
[366297653,1750179048554,-952.12,0.00024136,6]
[366297655,1750179048565,-2436.24,0.00024136,6]
[366297657,1750179048575,-1167.5,0.00024136,6]
[366297659,1750179048585,-517.42169834,0.00024136,6]
[366297661,1750179048594,-689.81,0.00024136,6]
[366297663,1750179048603,-460.0,0.00024136,6]
[366297665,1750179048613,-265.96767244,0.00024136,6]
[366297667,1750179048623,-460.0,0.00024136,6]
[366297669,1750179048632,-460.0,0.00024136,6]
[366297671,1750179048642,-520.02,0.00024136,6]
[366297673,1750179048652,-460.0,0.00024136,6]
[366297674,1750179048661,-460.0,0.00024136,6]
[366297676,1750179048671,-460.0,0.00024136,6]
[366297678,1750179048682,-1035.12,0.00024136,6]
[366297680,1750179048694,-1063.57,0.00024136,6]
[366297682,1750179048704,-460.0,0.00024136,6]
[366297684,1750179048714,-460.0,0.00024136,6]
[366297686,1750179048723,-581.55843773,0.00024136,6]
[366297688,1750179048733,-588.36917109,0.00024136,6]
[366297690,1750179048743,-460.0,0.00024136,6]
[366297692,1750179048752,-460.0,0.00024136,6]
[366297694,1750179048761,-3168.7,0.00024136,6]
[366297695,1750179048771,-1948.93,0.00024136,6]
[366297697,1750179048781,-460.0,0.00024136,6]
[366297699,1750179048791,-639.44,0.00024136,6]
[366297701,1750179048801,-9003.81,0.00024136,6]
[366297703,1750179048811,-460.0,0.00024136,6]
[366297704,1750179048820,-460.0,0.00024136,6]
[366297705,1750179048831,-460.0,0.00024136,6]
[366297706,1750179048840,-460.0,0.00024136,6]
[366297707,1750179048850,-460.0,0.00024136,6]
[366297708,1750179048860,-6910.54,0.00024136,6]
[366297709,1750179048873,-460.0,0.00024136,6]
[366297710,1750179048882,-460.0,0.00024136,6]
[366297711,1750179048892,-460.0,0.00024136,6]
[366297712,1750179048902,-460.0,0.00024136,6]
[366297713,1750179048911,-1833.36,0.00024136,6]
[366297714,1750179048921,-568.9505723,0.00024136,6]
[366297715,1750179048930,-460.0,0.00024136,6]
[366297716,1750179048942,-535.66,0.00024136,6]
[366297717,1750179048953,-460.0,0.00024136,6]
[366297718,1750179048963,-460.0,0.00024136,6]
[366297719,1750179048974,-460.0,0.00024136,6]
[366297720,1750179048984,-460.0,0.00024136,6]
[366297721,1750179048993,-461.0,0.00024136,6]
[366297722,1750179049003,-1432.49,0.00024136,6]
[366297723,1750179049013,-460.0,0.00024136,6]
[366297724,1750179049022,-3928.84,0.00024136,6]
[366297726,1750179049031,-912.64,0.00024136,6]
[366297728,1750179049042,-1566.68,0.00024136,6]
[366297730,1750179049052,-460.0,0.00024136,6]
[366297732,1750179049062,-440.0,0.00024136,6]
[366297734,1750179049072,-460.0,0.00024136,6]
[366297736,1750179049083,-460.0,0.00024136,6]
[366297738,1750179049093,-295.4188828,0.00024136,6]
[366297739,1750179049103,-3638.23,0.00024136,6]
[366297741,1750179049112,-160.06732633,0.00024136,6]
[366297743,1750179049122,-460.0,0.00024136,6]
[366297745,1750179049131,-460.0,0.00024136,6]
[366297747,1750179049141,-588.79336249,0.00024136,6]
[366297749,1750179049151,-460.0,0.00024136,6]
[366297751,1750179049161,-460.0,0.00024136,6]
[366297753,1750179049170,-460.0,0.00024136,6]
[366297755,1750179049180,-460.0,0.00024136,6]
[366297757,1750179049191,-615.62,0.00024136,6]
[366297758,1750179049202,-460.0,0.00024136,6]
[366297760,1750179049213,-460.0,0.00024136,6]
[366297762,1750179049225,-460.0,0.00024136,6]
[366297764,1750179049235,-460.0,0.00024136,6]
[366297766,1750179049246,-4138.65,0.00024136,6]
[366297768,1750179049256,-465.66,0.00024136,6]
[366297770,1750179049266,-460.0,0.00024136,6]
[366297772,1750179049277,-500.0,0.00024136,6]
[366297774,1750179049287,-1120.82,0.00024136,6]
[366297776,1750179049297,-460.0,0.00024136,6]
[366297778,1750179049307,-2281.14,0.00024136,6]
[366297780,1750179049318,-460.0,0.00024136,6]
[366297782,1750179049328,-9516.28,0.00024136,6]
[366297784,1750179049338,-792.55,0.00024136,6]
[366297786,1750179049349,-215.75886894,0.00024136,6]
[366297788,1750179049359,-281.84637289,0.00024136,6]
[366297790,1750179049369,-1847.59,0.00024136,6]
[366297792,1750179049379,-460.0,0.00024136,6]
[366297794,1750179049389,-775.22,0.00024136,6]
[366297795,1750179049398,-460.0,0.00024136,6]
[366297797,1750179049407,-460.0,0.00024136,6]
[366297799,1750179049417,-475.48,0.00024136,6]
[366297801,1750179049426,-550.44,0.00024136,6]
[366297803,1750179049436,-460.0,0.00024136,6]
[366297805,1750179049445,-460.0,0.00024136,6]
[366297807,1750179049454,-460.0,0.00024136,6]
[366297809,1750179049464,-460.0,0.00024136,6]
[366297811,1750179049473,-460.0,0.00024136,6]
[366297813,1750179049483,-460.0,0.00024136,6]
[366297815,1750179049495,-1266.5,0.00024136,6]
[366297817,1750179049504,-460.0,0.00024136,6]
[366297818,1750179049513,-217.34797207,0.00024136,6]
[366297820,1750179049523,-460.0,0.00024136,6]
[366297822,1750179049534,-6837.03,0.00024136,6]
[366297824,1750179049543,-460.0,0.00024136,6]
[366297826,1750179049552,-460.0,0.00024136,6]
[366297828,1750179049561,-460.0,0.00024136,6]
[366297830,1750179049572,-1325.29,0.00024136,6]
[366297832,1750179049581,-460.0,0.00024136,6]
[366297834,1750179049591,-460.0,0.00024136,6]
[366297836,1750179049600,-460.0,0.00024136,6]
[366297838,1750179049611,-680.79,0.00024136,6]
[366297840,1750179049626,-460.0,0.00024136,6]
[366297842,1750179049635,-460.0,0.00024136,6]
[366297844,1750179049645,-460.0,0.00024136,6]
[366297845,1750179049655,-1152.07,0.00024136,6]
[366297847,1750179049665,-460.0,0.00024136,6]
[366297849,1750179049675,-850.82,0.00024136,6]
[366297851,1750179049685,-460.0,0.00024136,6]
[366297853,1750179049697,-1387.06,0.00024136,6]
[366297855,1750179049707,-460.0,0.00024136,6]
[366297857,1750179049717,-633.62,0.00024136,6]
[366297859,1750179049728,-727.56,0.00024138,3]
[366297861,1750179049738,-3332.09407546,0.00024154,2]
[366297863,1750179049748,-5000.0,0.00024157,2]
[366297865,1750179049759,-260.439774,0.00024164,7]
[366297867,1750179049769,-151.0,0.00024164,7]
[366297869,1750179049779,-151.0,0.00024164,7]
[366297871,1750179049788,-151.0,0.00024164,7]
[366297873,1750179049800,-151.0,0.00024164,7]
[366297875,1750179049810,-460.0,0.00024164,6]
[366297877,1750179049820,-535.05801778,0.00024164,6]
[366297879,1750179049831,-460.0,0.00024164,6]
[366297880,1750179049840,-460.0,0.00024164,6]
[366297882,1750179049850,-508.11,0.00024164,6]
[366297884,1750179049860,-460.0,0.00024164,6]
[366297886,1750179049870,-460.0,0.00024164,6]
[366297888,1750179049881,-460.0,0.00024164,6]
[366297890,1750179049891,-460.0,0.00024164,6]
[366297892,1750179049901,-151.0,0.00024164,7]
[366297894,1750179049911,-151.0,0.00024164,7]
[366297896,1750179049921,-460.0,0.00024164,6]
[366297898,1750179049931,-460.0,0.00024164,6]
[366297900,1750179049944,-460.0,0.00024164,6]
[366297902,1750179049954,-422.19939293,0.00024164,6]
[366297904,1750179049964,-460.0,0.00024164,6]
[366297906,1750179049974,-479.85,0.00024164,6]
[366297908,1750179049983,-460.0,0.00024164,6]
[366297910,1750179049994,-460.0,0.00024164,6]
[366297912,1750179050003,-460.0,0.00024164,6]
[366297914,1750179050013,-460.0,0.00024164,6]
[366297916,1750179050022,-460.0,0.00024164,6]
[366297917,1750179050031,-460.0,0.00024164,6]
[366297919,1750179050041,-460.0,0.00024164,6]
[366297921,1750179050051,-460.0,0.00024164,6]
[366297923,1750179050060,-452.73893567,0.00024164,6]
[366297924,1750179050071,-460.0,0.00024164,6]
[366297925,1750179050081,-384.4833719,0.00024164,6]
[366297926,1750179050090,-460.0,0.00024164,6]
[366297927,1750179050100,-460.0,0.00024164,6]
[366297928,1750179050109,-375.83941792,0.00024164,6]
[366297929,1750179050117,-460.0,0.00024164,6]
[366297930,1750179050127,-155.216599,0.00024164,7]
[366297931,1750179050136,-460.0,0.00024164,6]
[366297932,1750179050146,-151.0,0.00024164,2]
[366297933,1750179050155,-151.0,0.00024164,2]
[366297934,1750179050166,-151.0,0.00024164,2]
[366297935,1750179050175,-460.0,0.00024164,6]
[366297936,1750179050188,-151.0,0.00024164,2]
[366297937,1750179050197,-772.44,0.00024164,6]
[366297938,1750179050206,-460.0,0.00024164,6]
[366297939,1750179050216,-460.0,0.00024164,6]
[366297940,1750179050226,-340.0,0.00024164,6]
[366297941,1750179050235,-460.0,0.00024164,6]
[366297942,1750179050245,-460.0,0.00024164,6]
[366297943,1750179050254,-460.0,0.00024164,6]
[366297944,1750179050264,-460.0,0.00024164,6]
[366297945,1750179050273,-465.71,0.00024164,6]
[366297946,1750179050283,-460.0,0.00024164,6]
[366297947,1750179050292,-460.0,0.00024164,6]
[366297948,1750179050302,-151.0,0.00024164,7]
[366297949,1750179050311,-934.22,0.00024164,6]
[366297950,1750179050321,-460.0,0.00024164,6]
[366297951,1750179050331,-460.0,0.00024164,6]
[366297952,1750179050340,-460.0,0.00024164,6]
[366297953,1750179050350,-460.0,0.00024164,6]
[366297954,1750179050360,-1269.95,0.00024164,2]
[366297955,1750179050370,-1619.21,0.00024164,6]
[366297957,1750179050380,-1345.7,0.00024164,6]
[366297959,1750179050389,-460.0,0.00024164,6]
[366297961,1750179050399,-580.5,0.00024164,6]
[366297963,1750179050408,-460.0,0.00024164,6]
[366297965,1750179050418,-460.0,0.00024164,6]
[366297967,1750179050427,-460.0,0.00024164,6]
[366297968,1750179050436,-460.0,0.00024164,6]
[366297970,1750179050445,-151.0,0.00024164,7]
[366297972,1750179050455,-460.0,0.00024164,6]
[366297974,1750179050465,-460.0,0.00024164,6]
[366297976,1750179050475,-172.62909156,0.00024164,6]
[366297978,1750179050486,-460.0,0.00024164,6]
[366297980,1750179050498,-460.0,0.00024164,6]
[366297982,1750179050508,-588.03,0.00024164,6]
[366297984,1750179050517,-460.0,0.00024164,6]
[366297986,1750179050526,-460.0,0.00024164,6]
[366297988,1750179050537,-460.0,0.00024164,6]
[366297990,1750179050546,-460.0,0.00024164,6]
[366297992,1750179050555,-460.0,0.00024164,6]
[366297994,1750179050565,-460.0,0.00024164,6]
[366297996,1750179050575,-460.0,0.00024164,6]
[366297998,1750179050585,-460.0,0.00024164,6]
[366298000,1750179050595,-460.0,0.00024164,6]
[366298002,1750179050604,-460.0,0.00024164,6]
[366298004,1750179050614,-460.0,0.00024164,6]
[366298006,1750179050623,-460.0,0.00024164,6]
[366298008,1750179050632,-460.0,0.00024164,6]
[366298010,1750179050642,-460.0,0.00024164,6]
[366298012,1750179050652,-460.0,0.00024164,6]
[366298014,1750179050662,-460.0,0.00024164,6]
[366298016,1750179050672,-460.0,0.00024164,6]
[366298018,1750179050681,-630.32,0.00024164,6]
[366298020,1750179050692,-460.0,0.00024164,6]
[366298022,1750179050702,-460.0,0.00024164,6]
[366298024,1750179050711,-474.93,0.00024164,6]
[366298025,1750179050721,-560.74,0.00024164,6]
[366298027,1750179050730,-460.0,0.00024164,6]
[366298029,1750179050740,-634.35,0.00024164,6]
[366298031,1750179050750,-460.0,0.00024164,6]
[366298033,1750179050760,-460.0,0.00024164,6]
[366298035,1750179050770,-151.0,0.00024164,7]
[366298037,1750179050779,-151.0,0.00024164,7]
[366298039,1750179050789,-151.0,0.00024164,7]
[366298041,1750179050799,-460.0,0.00024164,6]
[366298043,1750179050809,-460.0,0.00024164,6]
[366298045,1750179050819,-500.0,0.00024164,6]
[366298047,1750179050828,-1575.2,0.00024164,6]
[366298049,1750179050838,-460.0,0.00024164,6]
[366298051,1750179050847,-880.65,0.00024164,6]
[366298053,1750179050856,-460.0,0.00024164,6]
[366298055,1750179050866,-460.0,0.00024164,6]
[366298057,1750179050875,-638.02,0.00024164,6]
[366298059,1750179050884,-264.35051329,0.00024164,6]
[366298061,1750179050893,-460.0,0.00024164,6]
[366298063,1750179050903,-460.0,0.00024164,6]
[366298065,1750179050913,-460.0,0.00024164,6]
[366298067,1750179050923,-460.0,0.00024164,6]
[366298069,1750179050932,-483.35,0.00024164,6]
[366298071,1750179050944,-482.41738392,0.00024164,6]
[366298073,1750179050953,-460.0,0.00024164,6]
[366298075,1750179050963,-325.29708729,0.00024164,6]
[366298077,1750179050974,-460.0,0.00024164,6]
[366298079,1750179050984,-151.0,0.00024164,7]
[366298081,1750179050993,-151.0,0.00024164,7]
[366298083,1750179051003,-460.0,0.00024164,6]
[366298085,1750179051013,-460.0,0.00024164,6]
[366298087,1750179051022,-517.96,0.00024164,6]
[366298089,1750179051032,-151.0,0.00024164,7]
[366298091,1750179051041,-460.0,0.00024164,6]
[366298093,1750179051051,-151.0,0.00024164,7]
[366298095,1750179051061,-674.52,0.00024164,6]
[366298097,1750179051071,-460.0,0.00024164,6]